{"text_format":"1","workbook":"xlsx","n_sheets":7,"sheets":["Kassa","Stammdaten","Erfassung","Saldenliste","Kontoauszug","Kassenbericht","Listen"],"not_rendered":{"charts":0,"images":0,"macros":1,"external_links":0,"defined_names":46,"comments":0,"pivot_tables":2},"unopened":[],"bounds":{"document_bytes":16777216,"sheet_cells":100000,"rows_first":2000,"rows_last":500,"rows_between":2000,"halvings":0,"cell_chars":16384,"cell_head_chars":4096},"cells_cut":0,"cells_raw":0,"read":"whole","date_system":"1900"}

{"sheet":"Kassa","index":0,"n_rows":36,"n_cols":7,"rows_kept":36,"cut":false,"hidden":false,"merged":[]}
["Daten für die Verwendung im Programm (bitte nicht löschen)"]
[]
[null,"KontoNr",2801,{"$f":"VLOOKUP(Konto1,Kontoliste,2,FALSE)","v":{"$error":"#N/A"}},{"$f":"VLOOKUP(Konto1,Kontoliste,3,FALSE)","v":{"$error":"#N/A"}},{"$f":"VLOOKUP(Konto1,Kontoliste,4,FALSE)","v":{"$error":"#N/A"}},{"$f":"VLOOKUP(Konto1,Kontoliste,11,FALSE)","v":{"$error":"#N/A"}}]
[null,"GegenKto",6000,{"$f":"VLOOKUP(Konto2,Kontoliste,2,FALSE)","v":{"$error":"#N/A"}}]
[]
[null,"Belegnummern automatisch weiterzählen",null,null,false]
[null,"Saldo automatisch berechnen",null,null,true]
[null,"Belegnummer f. aktuelles Konto verwenden",null,null,true]
[]
[]
["Kassabuch"]
["für:",{"$f":"Name","v":"FF XY"}]
["Buchungsjahr:",{"$f":"Buch_Jahr","v":2021}]
[]
[null,"Stammdaten erfassen/ändern"]
[null,"Buchungen erfassen"]
[null,"Saldenliste"]
[null,"Kontoauszug"]
[null,"Kassenbericht"]
[]
[]
["Dieses Excel-Makro dient der Führung von Kassenhilfsaufzeichnungen (incl. Bank, Sparbüchern etc.) für"]
["nicht gewerbliche Organisationen wie Feuerwehren etc."]
["Für den betrieblichen Bereich ist dieses nicht geeignet!"]
[]
["Neben der Führung der laufenden Aufzeichnungen können die Einnahmen bzw. Ausgaben nach Gruppen sortiert"]
["ausgewertet und ausgedruckt werden."]
[]
["Die Verwendung erfolgt ausschließlich freiwillig und auf eigene Gefahr. Es kann keinerlei Haftung für irgendwelche"]
["Fehlanwendungen, fehlerhafte Berechnungen oder Ausdrucke etc. oder Folgeschäden übernommen werden."]
["Die verwendeten Makros wurden für Office 2003-2007 erstellt und sollten ab der Excel-Version von OfficeXP"]
["lauffähig sein, für frühere Versionen ist dies nicht bekannt."]
[]
["Erstellt und Copyright durch:","Franz Bretterbauer",null,null,"Stand: 28.05.2021"]
[null,"3910 Sift Zwettl 113"]
[null,"franz.bretterbauer@feuerwehr.gv.at"]

{"sheet":"Stammdaten","index":1,"n_rows":49,"n_cols":11,"rows_kept":49,"cut":false,"hidden":false,"merged":[]}
["Stammdaten",null,null,"Vorgaben für die Kontonummern:"]
[null,null,null,"1-2999","aktive Bestandskonten"]
["Name","FF XY",null,"3000-3999","passive Bestandskonten"]
["Straße",null,null,"4000-4999","Ertragskonten"]
["Ort",null,null,"5000-8999","Aufwandskonten"]
[null,null,null,"9000-9998","Kapital- u. Verrechnungskonten"]
["Buchungsjahr:",2021,null,9999,"Saldovortrag"]
["Text für Auswertungen:"]
["Kopfzeile links:",{"$f":"Name","v":"FF XY"}]
[]
[null,null,null,null,"Abschluss","Voranschlag",null,null,"Saldo","Voranschlag"]
["Konto-Nr.","Kontobezeichnung","BelArt","lfdNr. anz.",{"$f":"+Buch_Jahr-1","v":2020},{"$f":"+Buch_Jahr","v":2021},"Eröffnung","Bewegung",{"$f":"+Buch_Jahr","v":2021},{"$f":"+Buch_Jahr+1","v":2022},"letzte BelNr."]
[2000,"Kassa","K",true]
[2100,"Giro","Sp",true]
[2120,"Sparbuch","Spb",true]
[2990,"Andere Guthaben",null,true]
[3000,"Verbindlichkeiten",null,true]
[4000,"Kostenersätze"]
[4200,"Reingewinn Feuerwehrfest"]
[4210,"Reingewinn Feuerwehrball"]
[4300,"Unterstützende Mitglieder"]
[4350,"Diverse Spenden"]
[4400,"Zuschüsse Gemeinde"]
[4450,"Förderung durch LFV"]
[4500,"Zinserträge"]
[4600,"Getränkekassa"]
[4700,"Mieterlöse"]
[5000,"Lehrgänge, Fortbildung"]
[5100,"Wettkämpfe"]
[5500,"Uniformen"]
[5700,"Fachliteratur"]
[5800,"Reisek., Taggeld, Verpflegung"]
[5900,"Pflege der Kameradschaft"]
[5910,"Ehrungen, besondere Anlässe"]
[6100,"Instandhaltung, Reinigung"]
[6110,"Beheizung"]
[6115,"Strom"]
[6120,"Wasser"]
[6150,"Verbrauchsmat., so. Aufwand"]
[6200,"Betriebskosten Kfz, Geräte"]
[6300,"Instandhaltung Kfz, Geräte"]
[6400,"Büromaterial, Porto"]
[6410,"Telefon"]
[6800,"Neuanschaffungen"]
[7100,"Versicherungen"]
[7300,"Beiträge, Umlagen"]
[7500,"Bankspesen"]
[7600,"Kapitalertragsteuer"]
[9999,"Saldovortrag"]

{"sheet":"Erfassung","index":2,"n_rows":5,"n_cols":9,"rows_kept":5,"cut":false,"hidden":false,"merged":[]}
[{"$f":"KopfLinks","v":"FF XY"}]
["Buchungsjournal"]
[{"$f":"\"für den Zeitraum: \" & TEXT(MIN(B:B),\"T.M.JJJJ\") & \" - \" & TEXT(MAX(B:B),\"T.M.JJJJ\")","v":"für den Zeitraum: 0.1.1900 - 0.1.1900"}]
[]
["lfd.Nr.","Datum","Bel.","Nr.","von - an","Zweck","Konto","Betrag","GKonto"]

{"sheet":"Saldenliste","index":3,"n_rows":117,"n_cols":6,"rows_kept":117,"cut":false,"hidden":false,"merged":[]}
["Muster für Summenzeile:"]
["Summe"]
[]
["Gesamtsaldo der Bestandskonten",null,{"$f":"C2-D2","v":0}]
["Gebarungserfolg/-abgang",null,null,null,{"$f":"F2-E2","v":0}]
[]
[{"$f":"KopfLinks","v":"FF XY"}]
["Saldenliste"]
[{"$f":"Zeitraum","v":"für den Zeitraum: 0.1.1900 - 0.1.1900"}]
[null,null,"B e s t a n d s k o n t e n",null,"E r f o l g s k o n t e n"]
["Kto-Nr.","Kontobezeichnung","Aktiva","Passiva","Aufwand","Ertrag"]
[2000,"Kassa"]
[2100,"Giro"]
[2120,"Sparbuch"]
[2990,"Andere Guthaben"]
[3000,"Verbindlichkeiten"]
[4000,"Kostenersätze"]
[4200,"Reingewinn Feuerwehrfest"]
[4210,"Reingewinn Feuerwehrball"]
[4300,"Unterstützende Mitglieder"]
[4350,"Diverse Spenden"]
[4400,"Zuschüsse Gemeinde"]
[4450,"Förderung durch LFV"]
[4500,"Zinserträge"]
[4600,"Getränkekassa"]
[4700,"Mieterlöse"]
[5000,"Lehrgänge, Fortbildung"]
[5100,"Wettkämpfe"]
[5500,"Uniformen"]
[5700,"Fachliteratur"]
[5800,"Reisek., Taggeld, Verpflegung"]
[5900,"Pflege der Kameradschaft"]
[5910,"Ehrungen, besondere Anlässe"]
[6100,"Instandhaltung, Reinigung"]
[6110,"Beheizung"]
[6115,"Strom"]
[6120,"Wasser"]
[6150,"Verbrauchsmat., so. Aufwand"]
[6200,"Betriebskosten Kfz, Geräte"]
[6300,"Instandhaltung Kfz, Geräte"]
[6400,"Büromaterial, Porto"]
[6410,"Telefon"]
[6800,"Neuanschaffungen"]
[7100,"Versicherungen"]
[7300,"Beiträge, Umlagen"]
[7500,"Bankspesen"]
[7600,"Kapitalertragsteuer"]
[]
[]
[]
[]
[]
[]
[]
[]
[]
[]
[]
[]
[]
[]
[]
[]
[]
[]
[]
[]
[]
[]
[]
[]
[]
[]
[]
[]
[]
[]
[]
[]
[]
[]
[]
[]
[]
[]
[]
[]
[]
[]
[]
[]
[]
[]
[]
[]
[]
[]
[]
[]
[]
[]
[]
[]
[]
[]
[]
[]
[]
[]
[]
[]
[]
[]
["Summe",null,{"$f":"SUM(C12:C113)","v":0},{"$f":"SUM(D12:D113)","v":0},0,0]
[]
["Gesamtsaldo der Bestandskonten",null,{"$f":"C114-D114","v":0}]
["Gebarungserfolg/-abgang",null,null,null,{"$f":"F114-E114","v":0}]

{"sheet":"Kontoauszug","index":4,"n_rows":11,"n_cols":10,"rows_kept":11,"cut":false,"hidden":false,"merged":[]}
["Muster für Detail-Überschrift Kontoauszug:"]
["Konto"]
["Journal","Datum","Bel.","Nr.","von - an","Text","GKonto","Soll","Haben","Saldo"]
[]
[null,null,null,null,"Summe Bewegungen"]
[null,null,null,null,"Endsaldo"]
[]
[]
[{"$f":"KopfLinks","v":"FF XY"}]
["Kontoauszug"]
[{"$f":"Zeitraum","v":"für den Zeitraum: 0.1.1900 - 0.1.1900"}]

{"sheet":"Kassenbericht","index":5,"n_rows":39,"n_cols":7,"rows_kept":39,"cut":false,"hidden":false,"merged":[]}
["Muster für Überschrifts- u. Summenzeilen:"]
[null,"Summe Anfangsbestand"]
[]
["E i n n a h m e n"]
[null,"Summe Erträge",null,null,null,{"$f":"E5","v":0}]
[]
[]
["A u s g a b e n"]
[null,"Summe Ausgaben",null,null,null,{"$f":"E9","v":0}]
[]
["E n d b e s t a n d"]
[null,"Summe Endbestand"]
[]
[]
[]
["Gebarungserfolg"]
[]
[{"$f":"KopfLinks","v":"FF XY"}]
["Kassenbericht"]
[{"$f":"Zeitraum","v":"für den Zeitraum: 0.1.1900 - 0.1.1900"}]
[]
[null,null,"Abschluss","Voranschlag","Jahresabschluss",null,"Voranschlag"]
[null,null,{"$f":"D23-1","v":2020},{"$f":"Buch_Jahr","v":2021},null,null,{"$f":"D23+1","v":2022}]
["A n f a n g s b e s t a n d"]
[null,"Summe Anfangsbestand",null,null,null,0]
[]
["E i n n a h m e n"]
[null,"Summe Erträge",0,0,0,{"$f":"E28","v":0},0]
[null,null,null,null,null,0]
[]
["A u s g a b e n"]
[null,"Summe Ausgaben",0,0,0,{"$f":"E32","v":0},0]
[]
["E n d b e s t a n d"]
[null,"Summe Endbestand",null,null,null,0]
[null,null,null,null,null,0]
[]
[]
["Gebarungserfolg",null,0,0,0,null,0]

{"sheet":"Listen","index":6,"n_rows":6,"n_cols":9,"rows_kept":6,"cut":false,"hidden":false,"merged":[]}
[]
[]
[]
["von - an",null,null,null,null,null,null,null,"Zweck"]
["(Leer)",null,null,null,null,null,null,null,"(Leer)"]
["Gesamtergebnis",null,null,null,null,null,null,null,"Gesamtergebnis"]